lending/lending_fUSD_20251021
["ID","MTS","AMOUNT","RATE_DAILY","PERIOD"]
[392005478,1761084645425,-200.0,0.00032598,2]
[392005479,1761084645434,-200.0,0.00032598,2]
[392005480,1761084645443,-200.0,0.00032598,2]
[392005481,1761084645452,-200.0,0.00032598,2]
[392005482,1761084645461,-200.0,0.00032598,2]
[392005483,1761084645470,-200.0,0.00032598,2]
[392005484,1761084645480,-200.0,0.00032598,2]
[392005485,1761084645489,-200.0,0.00032598,2]
[392005486,1761084645498,-200.0,0.00032598,2]
[392005487,1761084645507,-200.0,0.00032598,2]
[392005488,1761084645517,-200.0,0.00032598,2]
[392005489,1761084645527,-200.0,0.00032598,2]
[392005490,1761084645535,-200.0,0.00032598,2]
[392005491,1761084645545,-151.85110383,0.00032604,2]
[392005492,1761084645555,-150.0,0.00032618,2]
[392005493,1761084645563,-1425.0,0.00032635,2]
[392005494,1761084645572,-304.14509461,0.00032649,2]
[392005495,1761084645582,-500.0,0.00032661,7]
[392005496,1761084645591,-800.0,0.00032661,7]
[392005497,1761084645600,-500.0,0.00032661,7]
[392005498,1761084645609,-711.11924549,0.00032668,2]
[392005499,1761084645618,-1425.0,0.00032722,2]
[392005500,1761084645627,-1425.0,0.00032724,2]
[392005501,1761084645636,-9140.99788555,0.00032748,2]
[392005502,1761084645646,-1425.0,0.00032762,2]
[392005503,1761084645655,-1000.0,0.00032764,2]
[392005504,1761084645664,-236.72570951,0.00032826,15]
[392005505,1761084645674,-1000.0,0.00032849,2]
[392005506,1761084645683,-1425.0,0.00032852,2]
[392005507,1761084645692,-1425.0,0.00032873,2]
[392005508,1761084645702,-1999.0,0.00032876,120]
[392005509,1761084645711,-177.36,0.00032877,2]
[392005510,1761084645721,-151.0,0.00032877,120]
[392005511,1761084645731,-1425.0,0.00032898,2]
[392005512,1761084645740,-1425.0,0.00032899,2]
[392005513,1761084645749,-319.23345936,0.000329,2]
[392005514,1761084645758,-1000.0,0.00032906,2]
[392005515,1761084645767,-1000.0,0.00032948,2]
[392005516,1761084645781,-1425.0,0.00032987,2]
[392005517,1761084645790,-1000.0,0.00032998,2]
[392005518,1761084645799,-837.18,0.00033,2]
[392005519,1761084645809,-268.06875356,0.00033,120]
[392005520,1761084645818,-4001.0,0.00033,3]
[392005521,1761084645830,-160.5,0.00033,60]
[392005522,1761084645839,-1000.0,0.00033,2]
[392005523,1761084645849,-558.76178347,0.00033,2]
[392005524,1761084645858,-366.266458,0.00033,7]
[392005525,1761084645868,-9085.39012184,0.00033,120]
[392005526,1761084645878,-204.72354312,0.00033,120]
[392005527,1761084645887,-194.67349173,0.00033,120]
[392005528,1761084645897,-200.339405,0.00033,120]
[392005529,1761084645906,-2575.44217096,0.00033,2]
[392005530,1761084645916,-1000.0,0.00033001,2]
[392005531,1761084645925,-1425.0,0.00033008,2]
[392005533,1761084645935,-1425.0,0.00033013,2]
[392005535,1761084645945,-1000.0,0.00033019,2]
[392005537,1761084645955,-1000.0,0.00033023,2]
[392005539,1761084645965,-1000.0,0.00033031,2]
[392005541,1761084645975,-1000.0,0.00033043,2]
[392005543,1761084645985,-1425.0,0.00033051,2]
[392005545,1761084645996,-1425.0,0.00033057,2]
[392005547,1761084646005,-1425.0,0.00033097,2]
[392005549,1761084646015,-1130.46,0.000331,30]
[392005552,1761084646025,-1425.0,0.00033103,2]
[392005554,1761084646035,-150.0,0.00033105,30]
[392005556,1761084646045,-463.45762617,0.00033105,30]
[392005558,1761084646054,-150.0,0.00033105,30]
[392005560,1761084646063,-3172.81976085,0.00033105,30]
[392005562,1761084646072,-150.0,0.00033105,30]
[392005564,1761084646082,-150.0,0.00033105,30]
[392005566,1761084646091,-732.96217786,0.00033105,30]
[392005568,1761084646100,-793.8558851,0.00033105,30]
[392005571,1761084646110,-1425.0,0.00033117,2]
[392005590,1761084646244,-1000.0,0.00033118,2]
[392005592,1761084646256,-150.0,0.00033121,2]
[392005594,1761084646266,-150.0,0.00033122,2]
[392005597,1761084646276,-150.0,0.00033129,2]
[392005599,1761084646286,-1425.0,0.00033136,2]
[392005601,1761084646296,-1425.0,0.00033152,2]
[392005603,1761084646307,-150.0,0.00033158,2]
[392005605,1761084646317,-1425.0,0.0003316,2]
[392005607,1761084646326,-373.6,0.00033165,2]
[392005609,1761084646336,-1000.0,0.00033181,2]
[392005611,1761084646346,-1000.0,0.00033187,2]
[392005613,1761084646355,-196.51032343,0.00033196,7]
[392005615,1761084646365,-1425.0,0.00033202,2]
[392005617,1761084646374,-150.0,0.00033217,2]
[392005619,1761084646383,-154.31916642,0.00033237,2]
[392005621,1761084646392,-1425.0,0.00033242,2]
[392005623,1761084646402,-1425.0,0.00033262,2]
[392005625,1761084646415,-150.0,0.00033264,2]
[392005627,1761084646424,-150.0,0.00033282,2]
[392005629,1761084646433,-1425.0,0.00033287,2]
[392005631,1761084646443,-150.0,0.00033293,2]
[392005633,1761084646453,-1425.0,0.00033293,2]
[392005635,1761084646462,-493.47,0.000333,7]
[392005637,1761084646473,-1000.0,0.000333,60]
[392005639,1761084646482,-657.17,0.000333,7]
[392005641,1761084646492,-119339.612803,0.000333,2]
[392005643,1761084646502,-10271.55,0.000333,14]
[392005646,1761084646513,-698.2,0.000333,7]
[392005648,1761084646523,-699.68,0.000333,7]
[392005650,1761084646532,-1308.72257572,0.00033301,5]
[392005651,1761084646541,-1000.0,0.00033304,2]
[392005652,1761084646552,-1425.0,0.00033305,2]
[392005653,1761084646562,-1425.0,0.00033347,2]
[392005654,1761084646574,-1000.0,0.00033354,2]
[392005655,1761084646583,-1425.0,0.00033356,2]
[392005656,1761084646593,-5040.85912,0.00033365,30]
[392005657,1761084646603,-1000.0,0.0003337,2]
[392005658,1761084646614,-1000.0,0.0003337,2]
[392005659,1761084646624,-1425.0,0.0003338,2]
[392005660,1761084646634,-1000.0,0.00033384,2]
[392005661,1761084646643,-1000.0,0.0003339,2]
[392005662,1761084646653,-493.47,0.000334,7]
[392005663,1761084646663,-583.77,0.000334,7]
[392005664,1761084646672,-1196.16,0.000334,14]
[392005665,1761084646681,-1425.0,0.00033409,2]
[392005666,1761084646691,-1000.0,0.00033447,2]
[392005667,1761084646700,-167.34157209,0.00033452,30]
[392005668,1761084646709,-800.0,0.00033483,7]
[392005669,1761084646718,-500.0,0.00033483,7]
[392005670,1761084646728,-150.0,0.00033494,2]
[392005671,1761084646737,-150.0,0.00033495,2]
[392005672,1761084646746,-708.61676556,0.00033497,2]
[392005673,1761084646755,-1425.0,0.00033499,2]
[392005674,1761084646764,-5795.62,0.000335,2]
[392005675,1761084646773,-1000.0,0.00033506,2]
[392005676,1761084646783,-150.0,0.00033515,2]
[392005677,1761084646792,-1000.0,0.00033521,2]
[392005678,1761084646802,-1425.0,0.0003356,2]
[392005679,1761084646811,-150.0,0.00033567,120]
[392005680,1761084646820,-319.23345935,0.00033568,2]
[392005681,1761084646830,-302.66843895,0.00033573,2]
[392005682,1761084646841,-1425.0,0.00033578,2]
[392005683,1761084646851,-1000.0,0.00033578,2]
[392005684,1761084646861,-1425.0,0.00033593,2]
[392005685,1761084646871,-150.0,0.00033597,2]
[392005686,1761084646880,-493.47,0.000336,7]
[392005687,1761084646890,-1924.82135933,0.000336,2]
[392005688,1761084646900,-8358.4554578,0.000336,10]
[392005689,1761084646909,-150.0,0.00033613,2]
[392005690,1761084646919,-1425.0,0.00033617,2]
[392005691,1761084646929,-1000.0,0.00033619,2]
[392005692,1761084646938,-1000.0,0.0003362,2]
[392005693,1761084646948,-1425.0,0.00033646,2]
[392005694,1761084646959,-748.90979821,0.00033647,2]
[392005695,1761084646969,-1425.0,0.0003365,2]
[392005696,1761084646980,-1000.0,0.0003365,2]
[392005697,1761084646990,-1000.0,0.00033652,2]
[392005698,1761084646999,-150.0,0.00033654,2]
[392005699,1761084647009,-1425.0,0.00033673,2]
[392005700,1761084647019,-1425.0,0.00033681,2]
[392005701,1761084647029,-150.0,0.00033691,2]
[392005703,1761084647038,-1999.0,0.00033698,120]
[392005704,1761084647047,-1000.0,0.00033701,2]
[392005705,1761084647061,-1425.0,0.00033709,2]
[392005706,1761084647083,-1425.0,0.00033716,2]
[392005707,1761084647103,-1000.0,0.00033727,2]
[392005708,1761084647122,-1425.0,0.00033728,2]
[392005709,1761084647137,-1425.0,0.0003373,2]
[392005710,1761084647156,-150.0,0.0003375,2]
[392005711,1761084647176,-1000.0,0.00033785,2]
[392005712,1761084647196,-261.45566317,0.0003382,2]
[392005713,1761084647214,-1425.0,0.00033822,2]
[392005714,1761084647232,-150.0,0.00033837,2]
[392005715,1761084647251,-1425.0,0.00033863,2]
[392005716,1761084647267,-1425.0,0.00033868,2]
[392005717,1761084647288,-150.0,0.00033878,2]
[392005718,1761084647300,-1000.0,0.00033895,2]
[392005719,1761084647320,-152.0,0.00033897,6]
[392005720,1761084647332,-1000.0,0.00033899,30]
[392005721,1761084647349,-38084.0,0.000339,2]
[392005722,1761084647364,-40108.12181011,0.000339,2]
[392005790,1761084795507,750.0,0.00034301,120]
[392005871,1761084963037,-300.01447246,0.000161,2]
[392005874,1761084993755,-152.4,0.000161,2]
[392005876,1761085023044,-161.0,0.000161,2]
[392005979,1761085325105,500.00000001,0.00034285,30]
[392006213,1761085832384,-261.33347254,0.000149,2]
[392006214,1761085832394,-236.72570951,0.000149,2]
[392006215,1761085832405,-1086.55437296,0.000149,2]
[392006216,1761085832416,-500.0,0.00014973,2]
[392006217,1761085832425,-439.44899125,0.00014973,2]
[392006218,1761085832438,-60.55100875,0.00014973,2]
[392006219,1761085832448,-373.44894701,0.00014999,2]
[392006220,1761085832457,-116.55004424,0.00014999,2]
[392006221,1761085832474,-68.42061253,0.00014999,2]
[392006222,1761085832484,-500.0,0.00014999,2]
[392006223,1761085832495,-300.0,0.00014999,2]
[392006224,1761085832505,-1200.0,0.00014999,2]
[392006225,1761085832515,-150.0,0.00014999,2]
[392006226,1761085832524,-500.0,0.00014999,2]
[392006227,1761085832534,-20396.10547062,0.00015,2]
[392006228,1761085832545,-834.71523046,0.00015,2]
[392006229,1761085832558,-2987.93745374,0.00015,2]
[392006230,1761085832582,-27103.72582667,0.00015,2]
[392006307,1761085838295,-3700.0142171,0.00015,2]
[392006308,1761085838308,-922.48510963,0.00015,2]
[392006309,1761085838320,-488.70963343,0.00015,2]
[392006310,1761085838377,-331.0442103,0.00015,2]
[392006311,1761085838389,-3316.63552388,0.00015,2]
[392006312,1761085838463,-315.50183773,0.00015,2]
[392006484,1761085840460,-1674.31159204,0.00015,2]
[392006498,1761085840588,-1028.952,0.00015,2]
[392006501,1761085840603,-108495.74067866,0.00015,2]
[392006513,1761085840705,-3300.0,0.00015,2]
[392006658,1761085843733,-337.27249606,0.00015,2]
[392006659,1761085843745,-9052.67843689,0.00015,2]
[392006688,1761085846669,-205.34110803,0.000149,2]
[392006689,1761085846690,-29435.68606318,0.00015,2]
[392006690,1761085846707,-13871.0787377,0.00015,2]
[392006691,1761085846722,-3726.09632765,0.00015,2]
[392006692,1761085846821,-614.17500785,0.00015,2]
[392006940,1761086052374,150.0,0.00034285,120]
[392006941,1761086052611,300.0,0.00034285,120]
[392006942,1761086052864,450.0,0.00034285,120]
[392006943,1761086053194,600.0,0.00034285,120]
[392007069,1761086374084,28979.2,0.00030137,120]
[392007112,1761086480294,-349.90434703,0.00014999,5]
[392007222,1761086881466,159.08,9.468e-05,2]
[392007237,1761086948950,264.03,0.00034286,30]
[392007243,1761086982785,-159.08,0.00014202,2]
[392007244,1761086982811,-195.83582641,0.00014799,2]
[392007245,1761086982836,-1200.0,0.00014898,2]
[392007246,1761086982861,-195.83582641,0.00014898,2]
[392007247,1761086982885,-463.832,0.00014899,2]
[392007248,1761086982909,-258.0,0.00014899,2]
[392007249,1761086982937,-150.0,0.00014899,2]
[392007250,1761086982962,-522.46311979,0.00014899,2]
[392007251,1761086982986,-154.68098857,0.000149,2]
[392007252,1761086983011,-27988.0919,0.000149,2]
[392007253,1761086983038,-5000.0,0.000149,2]
[392007254,1761086983068,-205.7861318,0.000149,2]
[392007255,1761086983094,-172.46875824,0.000149,2]
[392007256,1761086983122,-2343.23799368,0.000149,2]
[392007257,1761086983152,-977.89893561,0.000149,2]
[392007258,1761086983177,-195.83582641,0.000149,2]
[392007259,1761086983205,-4195.5666,0.000149,2]
[392007260,1761086983233,-205.34110803,0.000149,2]
[392007261,1761086983504,-166.32993521,0.000149,2]
[392007262,1761086983532,-173.40906323,0.0001499,2]
[392007263,1761086983560,-500.0,0.00014999,2]
[392007264,1761086983588,-500.0,0.00014999,2]
[392007265,1761086983614,-211.94002092,0.00014999,2]
[392007266,1761086983643,-500.0,0.00014999,2]
[392007267,1761086983670,-500.0,0.00014999,2]
[392007268,1761086983700,-500.0,0.00014999,2]
[392007269,1761086983726,-302.9206514,0.00014999,2]
[392007270,1761086983753,-500.0,0.00014999,2]
[392007271,1761086983784,-500.0,0.00014999,2]
[392007272,1761086983814,-500.0,0.00014999,2]
[392007273,1761086983841,-500.0,0.00014999,2]
[392007274,1761086983868,-500.0,0.00014999,2]
[392007275,1761086983895,-429.8343212,0.00014999,2]
[392007276,1761086983924,-154.41891674,0.00014999,2]
[392007277,1761086983951,-500.0,0.00014999,2]
[392007278,1761086983977,-315.04,0.00014999,2]
[392007279,1761086984004,-546.86790935,0.00014999,2]
[392007280,1761086984034,-500.0,0.00014999,2]
[392007281,1761086984062,-500.0,0.00014999,2]
[392007282,1761086984088,-411.57855128,0.00014999,2]
[392007283,1761086984116,-500.0,0.00014999,2]
[392007284,1761086984143,-500.0,0.00014999,2]
[392007285,1761086984169,-636.56552762,0.00014999,2]
[392007286,1761086984194,-500.0,0.00014999,2]
[392007287,1761086984218,-500.0,0.00014999,2]
[392007288,1761086984243,-1269.23996339,0.00014999,5]
[392007289,1761086984271,-500.0,0.00014999,2]
[392007290,1761086984298,-500.0,0.00014999,2]
[392007291,1761086984324,-500.0,0.00014999,2]
[392007292,1761086984349,-150.0,0.00014999,2]
[392007293,1761086984375,-500.0,0.00014999,2]
[392007294,1761086984403,-500.0,0.00014999,2]
[392007295,1761086984430,-500.0,0.00014999,2]
[392007296,1761086984466,-500.4,0.00014999,2]
[392007297,1761086984496,-182.90379833,0.00014999,2]
[392007298,1761086984525,-393.22439183,0.00014999,2]
[392007299,1761086984557,-500.0,0.00014999,2]
[392007300,1761086984583,-500.0,0.00014999,2]
[392007301,1761086984611,-500.0,0.00014999,2]
[392007302,1761086984638,-500.0,0.00014999,2]
[392007303,1761086984664,-500.0,0.00014999,2]
[392007304,1761086984694,-500.0,0.00014999,2]
[392007305,1761086984722,-316.31307033,0.00014999,2]
[392007306,1761086984750,-500.0,0.00014999,2]
[392007307,1761086984777,-500.0,0.00014999,2]
[392007308,1761086984807,-500.0,0.00014999,2]
[392007309,1761086984832,-500.0,0.00014999,2]
[392007310,1761086984858,-500.0,0.00014999,2]
[392007311,1761086984888,-43366.05886422,0.00015,2]
[392007337,1761087031570,-658.25,0.000149,2]
[392007338,1761087031582,-37.4576,0.000149,2]
[392007339,1761087031592,-5000.0,0.000149,2]
[392007340,1761087031602,-273.48636834,0.00014949,2]
[392007341,1761087031619,-124.00792855,0.00014949,2]
[392007342,1761087031629,-195.0,0.00014949,2]
[392007343,1761087031640,-333.16907989,0.00014973,2]
[392007344,1761087031668,-229.35962391,0.00014973,2]
[392007345,1761087031678,-172.56206533,0.00014973,2]
[392007346,1761087031687,-500.0,0.00014973,2]
[392007347,1761087031698,-500.0,0.00014999,2]
[392007348,1761087031708,-500.0,0.00014999,2]
[392007349,1761087031719,-500.0,0.00014999,2]
[392007350,1761087031730,-500.0,0.00014999,2]
[392007351,1761087031741,-500.0,0.00014999,2]
[392007352,1761087031752,-500.0,0.00014999,2]
[392007353,1761087031762,-500.0,0.00014999,2]
[392007354,1761087031773,-285.0,0.00014999,2]
[392007355,1761087031784,-2318.47671077,0.00015,2]
[392007356,1761087031802,-3166.82020646,0.00015,2]
[392007357,1761087031814,-45734.30827142,0.00015,2]
[392007358,1761087031826,-3738.53558558,0.00015,2]
[392007359,1761087031849,-1538.15394015,0.00015,2]
[392007360,1761087031861,-1093.5925,0.00015,2]
[392007363,1761087031886,-338.41,0.00015,2]
[392007365,1761087031898,-1764.39511108,0.00015,2]
[392007367,1761087031910,-427.455,0.00015,2]
[392007508,1761087037535,-4320.94963422,0.00015,2]
[392007509,1761087037547,-944.96660644,0.00015,2]
[392007510,1761087037559,-393.76411127,0.00015,2]
[392007511,1761087037570,-518.98264,0.00015,2]
[392007512,1761087037582,-342.16705211,0.00015,2]
[392007513,1761087037593,-2261.22513277,0.00015,2]
[392007514,1761087037604,-2589.32742834,0.00015,2]
[392007515,1761087037617,-1733.86308309,0.00015,2]
[392007516,1761087037632,-303.09010366,0.00015,2]
[392007517,1761087037718,-443.5,0.00015,2]
[392007518,1761087037731,-26000.0,0.00015,2]
[392007519,1761087037745,-787.348564,0.00015,2]
[392007520,1761087037757,-443.61236408,0.00015,2]
[392007522,1761087037770,-1050.39206372,0.00015,2]
[392007523,1761087037782,-4947.03745334,0.00015,2]
[392007525,1761087037798,-3780.05781706,0.00015,2]
[392007527,1761087037811,-1035.94561125,0.00015,2]
[392007529,1761087037822,-3008.25683,0.00015,2]
[392007531,1761087037835,-5314.35203336,0.00015,2]
[392007534,1761087037852,-90423.47247576,0.00015,2]
[392007536,1761087037863,-23439.31576879,0.00015,2]
[392007599,1761087039525,-2654.44841222,0.00015,2]
[392007600,1761087039586,-546.2,0.00015,2]
[392007601,1761087039648,-5996.5582485,0.00015,2]
[392007602,1761087039763,-606177.85794578,0.00015,2]
[392007606,1761087039942,-21874.20284701,0.00015,2]
[392007607,1761087039955,-2583.258792,0.00015,2]
[392007608,1761087039966,-1674.38258997,0.00015,2]
[392007609,1761087039978,-2283.05637345,0.00015,2]
[392007610,1761087039990,-970.97999772,0.00015,2]
[392007611,1761087040014,-2612.462194,0.00015,2]
[392007617,1761087042831,-923.049,0.00015,2]
[392007618,1761087042939,-777.71410974,0.00015,2]
[392007619,1761087042951,-2461.6746271,0.00015,2]
[392007620,1761087043083,-9153.75461309,0.00015,2]
[392007658,1761087045615,-5551.8094591,0.00015,2]
[392007662,1761087045627,-533.9999989,0.00015,2]
[392007668,1761087045744,-430.95412791,0.00015,2]
[392007669,1761087045947,-745.06980919,0.00015,2]
[392007732,1761087581467,329.75,0.00013699,2]
[392007745,1761087690575,-357.09,0.000147,2]
[392007776,1761088050563,-142.91,0.000147,2]
[392007777,1761088050585,-23.56344729,0.000147,2]
[392007778,1761088056390,-180.41655271,0.000147,2]
[392007781,1761088140495,-300.00000001,0.000147,2]
[392007784,1761088169912,-83.16299999,0.000147,2]
[392007785,1761088169935,-154.68098853,0.000149,2]
[392007786,1761088169959,-36.79579506,0.000149,2]
[392007787,1761088173852,-302.9,0.000149,2]
[392007790,1761088180405,-300.0,0.000149,2]
[392007797,1761088200097,-240.41324707,0.000149,2]
[392007798,1761088200122,-59.58675293,0.000149,2]
[392007799,1761088205353,-300.0,0.00014899,2]
[392007806,1761088213280,-165.32071131,0.000149,2]
[392007809,1761088230369,-307.1395051,0.000149,2]
[392007815,1761088231709,-313.0,0.000149,2]
[392007816,1761088231721,-1417.710898,0.000149,2]
[392007817,1761088231730,-205.34110802,0.000149,2]
[392007818,1761088231741,-4309.50421733,0.000149,2]
[392007819,1761088231767,-529.05,0.000149,2]
[392007820,1761088231779,-161.44578267,0.000149,2]
[392007821,1761088231789,-195.0,0.00014949,2]
[392007822,1761088231799,-150.0,0.00014998,2]
[392007823,1761088231808,-371.11421733,0.00014999,2]
[392007824,1761088231819,-128.88578267,0.00014999,2]
[392007825,1761088231829,-500.0,0.00014999,2]
[392007826,1761088231838,-500.0,0.00014999,2]
[392007827,1761088231847,-315.9922031,0.00014999,2]
[392007828,1761088231857,-500.0,0.00014999,2]
[392007829,1761088231866,-500.0,0.00014999,2]
[392007830,1761088231876,-500.0,0.00014999,2]
[392007831,1761088231886,-297.5077969,0.00014999,2]
[392007832,1761088231898,-500.0,0.00014999,2]
[392007833,1761088231910,-500.0,0.00014999,2]
[392007834,1761088231919,-500.0,0.00014999,2]
[392007835,1761088231929,-500.0,0.00014999,2]
[392007836,1761088231938,-500.0,0.00014999,2]
[392007837,1761088231947,-500.0,0.00014999,2]
[392007838,1761088231956,-500.0,0.00014999,2]
[392007839,1761088231965,-470.53138818,0.00014999,2]
[392007840,1761088231975,-500.0,0.00014999,2]
[392007841,1761088231985,-155.0,0.00014999,2]
[392007842,1761088231995,-500.0,0.00014999,2]
[392007845,1761088232005,-500.0,0.00014999,2]
[392007846,1761088232014,-500.0,0.00014999,2]
[392007847,1761088232024,-500.0,0.00014999,2]
[392007848,1761088232034,-500.0,0.00014999,2]
[392007850,1761088232043,-500.0,0.00014999,2]
[392007852,1761088232052,-500.0,0.00014999,2]
[392007854,1761088232062,-426.99259049,0.00014999,2]
[392007856,1761088232071,-500.0,0.00014999,2]
[392007858,1761088232080,-500.0,0.00014999,2]
[392007860,1761088232090,-210.03,0.00014999,2]
[392007862,1761088232100,-500.0,0.00014999,2]
[392007864,1761088232110,-245824.78975359,0.00015,2]
[392007866,1761088232121,-722.29881469,0.00015,2]
[392007868,1761088232132,-979.646,0.00015,2]
[392007872,1761088232153,-2951.793793,0.00015,2]
[392007874,1761088232168,-469.80788766,0.00015,2]
[392007890,1761088232710,-314.08928869,0.00015,2]
[392007896,1761088237746,-2197.63810758,0.00015,2]
[392007897,1761088237758,-294115.29259024,0.00015,2]
[392007899,1761088237769,-478.01127277,0.00015,2]
[392007900,1761088237781,-873.8621171,0.00015,2]
[392007901,1761088237792,-12809.42294059,0.00015,2]
[392007902,1761088237803,-11537.21839872,0.00015,2]
[392007903,1761088237814,-7825.16518512,0.00015,2]
[392007904,1761088237826,-10849.074,0.00015,2]
[392007905,1761088237839,-3431.20264619,0.00015,2]
[392007906,1761088237854,-941.78522596,0.00015,2]
[392007908,1761088237867,-1930.63445,0.00015,2]
[392007909,1761088237878,-1104.68,0.00015,2]
[392007931,1761088239897,-500.0,0.00014999,2]
[392007932,1761088239907,-353.55670583,0.00014999,2]
[392007933,1761088239917,-500.0,0.00014999,2]
[392007934,1761088239927,-8479.40426785,0.00015,2]
[392007935,1761088239939,-4428.11797574,0.00015,2]
[392007936,1761088239956,-536.95,0.00015,2]
[392007939,1761088240313,-1.6e-07,0.00015,2]
[392007940,1761088240329,-827.52169711,0.00015,2]
[392007941,1761088240346,-524417.03512197,0.00015,2]
[392007942,1761088240355,-2015.29996,0.00015,2]
[392007943,1761088240365,-16669.45,0.00015,2]
[392007944,1761088240375,-200.0,0.00015,2]
[392007945,1761088240386,-3304.5785905,0.00015,2]
[392007946,1761088240396,-213.58007,0.00015,2]
[392007947,1761088240406,-771.7689237,0.00015,2]
[392007948,1761088240416,-200.0,0.0001515,2]
[392007949,1761088240426,-171.38,0.00015199,2]
[392007950,1761088240436,-210.03,0.00015273,2]
[392007951,1761088240445,-200.0,0.00015301,2]
[392007952,1761088240455,-210.04,0.00015547,2]
[392007953,1761088240464,-166.66,0.00015846,2]
[392007954,1761088240474,-255.0,0.00016123,2]
[392007955,1761088240484,-300.0,0.0001617,2]
[392007956,1761088240494,-250.0,0.0001617,2]
[392007957,1761088240503,-180.41655271,0.0001617,2]
[392007958,1761088240516,-166.66,0.00016179,2]
[392007959,1761088240526,-420.0,0.00016308,2]
[392007960,1761088240536,-1487.34695093,0.00016389,2]
[392007961,1761088240546,-319.58344729,0.0001639,2]
[392007962,1761088240555,-195.0,0.0001639,2]
[392007963,1761088240565,-166.66,0.00016513,2]
[392007964,1761088240575,-192.54,0.00016712,2]
[392007965,1761088240584,-166.66,0.00016846,2]
[392007966,1761088240594,-250.0,0.00017,2]
[392007967,1761088240603,-213.58007,0.00017,2]
[392007968,1761088240614,-456.8451738,0.00017009,2]
[392007969,1761088240624,-2262.7578673,0.00017048,2]
[392007970,1761088240635,-166.66,0.0001718,2]
[392007971,1761088240645,-500.0,0.00017253,2]
[392007972,1761088240655,-164.5252802,0.00017324,2]
[392007974,1761088240665,-433.0,0.00017338,2]
[392007975,1761088240675,-321.59268532,0.000175,2]
[392007976,1761088240684,-166.66,0.00017514,2]
[392007977,1761088240699,-782.57,0.00017616,2]
[392007978,1761088240709,-182.23088544,0.0001784,2]
[392007979,1761088240719,-587.0,0.0001785,2]
[392007980,1761088240729,-736.0,0.00018628,2]
[392007982,1761088240739,-8134.14,0.00018785,2]
[392007983,1761088240749,-151.0,0.000188,2]
[392007984,1761088240759,-153.0,0.00018904,2]
[392007985,1761088240769,-153.0,0.00018904,2]
[392007986,1761088240779,-153.0,0.00018904,2]
[392007987,1761088240789,-153.0,0.00018904,2]
[392007988,1761088240799,-153.0,0.00018904,2]
[392007990,1761088240809,-153.0,0.00018904,2]
[392007991,1761088240820,-153.0,0.00018904,2]
[392007992,1761088240829,-153.0,0.00018904,2]
[392007997,1761088241111,-153.0,0.00018904,2]
[392007998,1761088241122,-153.0,0.00018904,2]
[392007999,1761088241132,-153.0,0.00018904,2]
[392008001,1761088241142,-153.0,0.00018904,2]
[392008002,1761088241152,-153.0,0.00018904,2]
[392008003,1761088241163,-153.0,0.00018904,2]
[392008004,1761088241173,-153.0,0.00018904,2]
[392008005,1761088241183,-153.0,0.00018904,2]
[392008006,1761088241193,-153.0,0.00018904,2]
[392008008,1761088241203,-153.0,0.00018904,2]
[392008009,1761088241213,-153.0,0.00018904,2]
[392008010,1761088241224,-153.0,0.00018915,2]
[392008011,1761088241234,-153.0,0.00018915,2]